lending/lending_fUSD_20250424
["ID","MTS","AMOUNT","RATE_DAILY","PERIOD"]
[358835358,1745487475454,-899.83355293,0.0005479,120]
[358835359,1745487475485,-899.83355293,0.0005479,120]
[358835360,1745487475514,-899.83355293,0.0005479,120]
[358835361,1745487475543,-899.83355293,0.0005479,120]
[358835362,1745487475576,-899.83355293,0.0005479,120]
[358835363,1745487475605,-899.83355293,0.0005479,120]
[358835364,1745487475634,-899.83355293,0.0005479,120]
[358835365,1745487475879,-899.83355293,0.0005479,120]
[358835366,1745487475909,-899.83355293,0.0005479,120]
[358835367,1745487475939,-899.83355293,0.0005479,120]
[358835368,1745487475970,-899.83355293,0.0005479,120]
[358835369,1745487476000,-899.83355293,0.0005479,120]
[358835370,1745487476029,-899.83355293,0.0005479,120]
[358835371,1745487476060,-899.83355293,0.0005479,120]
[358835372,1745487476090,-899.83,0.0005479,120]
[358835373,1745487476123,-414.58118769,0.0005479,120]
[358835374,1745487476155,-414.58118769,0.0005479,120]
[358835375,1745487476184,-414.58118769,0.0005479,120]
[358835376,1745487476215,-414.58118769,0.0005479,120]
[358835377,1745487476246,-414.58118769,0.0005479,120]
[358835378,1745487476279,-414.58118769,0.0005479,120]
[358835379,1745487476309,-414.58118769,0.0005479,120]
[358835380,1745487476339,-414.58118769,0.0005479,120]
[358835381,1745487476369,-414.58118769,0.0005479,120]
[358835382,1745487476401,-414.58118769,0.0005479,120]
[358835383,1745487476432,-414.58118769,0.0005479,120]
[358835384,1745487476464,-414.58118769,0.0005479,120]
[358835385,1745487476495,-414.58118769,0.0005479,120]
[358835386,1745487476525,-414.58118769,0.0005479,120]
[358835387,1745487476557,-414.58118769,0.0005479,120]
[358835388,1745487476587,-414.58118769,0.0005479,120]
[358835389,1745487476616,-414.58118769,0.0005479,120]
[358835390,1745487476646,-414.58118769,0.0005479,120]
[358835391,1745487476674,-414.58118769,0.0005479,120]
[358835392,1745487476702,-414.58,0.0005479,120]
[358835393,1745487476731,-967.35610461,0.0005479,120]
[358835394,1745487476759,-967.35610461,0.0005479,120]
[358835395,1745487476788,-967.35610461,0.0005479,120]
[358835396,1745487476818,-967.35610461,0.0005479,120]
[358835397,1745487476847,-967.35610461,0.0005479,120]
[358835398,1745487476875,-967.35610461,0.0005479,120]
[358835399,1745487476903,-967.35610461,0.0005479,120]
[358835400,1745487476930,-967.35610461,0.0005479,120]
[358835401,1745487476959,-967.35610461,0.0005479,120]
[358835402,1745487476989,-967.35610461,0.0005479,120]
[358835403,1745487477024,-967.35610461,0.0005479,120]
[358835404,1745487477053,-967.35610461,0.0005479,120]
[358835405,1745487477083,-967.35610461,0.0005479,120]
[358835406,1745487477117,-967.35610461,0.0005479,120]
[358835407,1745487477149,-967.35610461,0.0005479,120]
[358835408,1745487477180,-967.35610461,0.0005479,120]
[358835409,1745487477210,-967.35610461,0.0005479,120]
[358835410,1745487477239,-967.35610461,0.0005479,120]
[358835411,1745487477271,-967.35610461,0.0005479,120]
[358835412,1745487477301,-967.35,0.0005479,120]
[358835413,1745487477331,-799.5,0.00054794,120]
[358835414,1745487477362,-600.0,0.00054794,30]
[358835415,1745487477392,-600.0,0.00054794,30]
[358835416,1745487477421,-600.0,0.00054794,30]
[358835417,1745487477450,-600.0,0.00054794,30]
[358835418,1745487477480,-600.0,0.00054794,30]
[358835419,1745487477514,-600.00248933,0.00054794,30]
[358835420,1745487477542,-500.0,0.00054794,120]
[358835421,1745487477570,-500.0,0.00054794,120]
[358835422,1745487477599,-644.10978922,0.00054794,120]
[358835423,1745487477628,-700.0,0.00054794,120]
[358835424,1745487477656,-700.0,0.00054794,120]
[358835425,1745487477684,-700.0,0.00054794,120]
[358835426,1745487477713,-700.0,0.00054794,120]
[358835427,1745487477740,-700.0,0.00054794,120]
[358835428,1745487477768,-700.0,0.00054794,120]
[358835429,1745487477796,-594.40431534,0.00054794,120]
[358835430,1745487477824,-10000.0,0.00054794,120]
[358835431,1745487477852,-259.21724397,0.00054794,120]
[358835432,1745487477880,-500.0,0.00054794,120]
[358835433,1745487477909,-500.0,0.00054794,120]
[358835434,1745487477938,-500.0,0.00054794,120]
[358835435,1745487477966,-500.0,0.00054794,120]
[358835436,1745487477995,-500.0,0.00054794,120]
[358835437,1745487478024,-500.0,0.00054794,120]
[358835438,1745487478052,-500.0,0.00054794,120]
[358835439,1745487478082,-500.0,0.00054794,120]
[358835440,1745487478115,-500.0,0.00054794,120]
[358835441,1745487478147,-500.0,0.00054794,120]
[358835442,1745487478178,-500.0,0.00054794,120]
[358835443,1745487478210,-500.0,0.00054794,120]
[358835444,1745487478240,-500.0,0.00054794,120]
[358835445,1745487478269,-500.0,0.00054794,120]
[358835446,1745487478299,-500.0,0.00054794,120]
[358835447,1745487478329,-500.0,0.00054794,120]
[358835448,1745487478359,-500.0,0.00054794,120]
[358835449,1745487478387,-500.0,0.00054794,120]
[358835450,1745487478415,-588.64446308,0.00054794,120]
[358835451,1745487478445,-1852.32,0.00054794,120]
[358835452,1745487478474,-1852.32,0.00054794,120]
[358835453,1745487478503,-1852.32,0.00054794,120]
[358835454,1745487478533,-1852.32,0.00054794,120]
[358835455,1745487478563,-1852.32,0.00054794,120]
[358835456,1745487478593,-1852.32,0.00054794,120]
[358835457,1745487478623,-1852.32,0.00054794,120]
[358835458,1745487478653,-1852.32,0.00054794,120]
[358835459,1745487478683,-1852.32,0.00054794,120]
[358835460,1745487478711,-1852.32,0.00054794,120]
[358835461,1745487478739,-1852.32,0.00054794,120]
[358835462,1745487478768,-1852.32,0.00054794,120]
[358835463,1745487478797,-1852.32,0.00054794,120]
[358835464,1745487478828,-1852.32,0.00054794,120]
[358835465,1745487478857,-1852.32,0.00054794,120]
[358835466,1745487478887,-1852.32,0.00054794,120]
[358835467,1745487478917,-1852.32,0.00054794,120]
[358835468,1745487479150,-1852.32,0.00054794,120]
[358835469,1745487479184,-1852.32,0.00054794,120]
[358835470,1745487479217,-1852.32,0.00054794,120]
[358835471,1745487479248,-1852.32,0.00054794,120]
[358835472,1745487479278,-1852.32,0.00054794,120]
[358835473,1745487479309,-1852.32,0.00054794,120]
[358835474,1745487479342,-1852.38307087,0.00054794,120]
[358835475,1745487479371,-1000.0,0.00054794,120]
[358835476,1745487479401,-1000.0,0.00054794,120]
[358835477,1745487479430,-1000.0,0.00054794,120]
[358835478,1745487479459,-1000.0,0.00054794,120]
[358835479,1745487479490,-1000.0,0.00054794,120]
[358835480,1745487479519,-1000.0,0.00054794,120]
[358835481,1745487479548,-1000.0,0.00054794,120]
[358835482,1745487479578,-1000.0,0.00054794,120]
[358835483,1745487479606,-1000.0,0.00054794,120]
[358835484,1745487479634,-1000.0,0.00054794,120]
[358835485,1745487479662,-1000.0,0.00054794,120]
[358835486,1745487479690,-1000.0,0.00054794,120]
[358835487,1745487479718,-1037.25,0.00054794,120]
[358835488,1745487479746,-1000.0,0.00054794,120]
[358835489,1745487479773,-1037.25,0.00054794,120]
[358835490,1745487479801,-736.44564973,0.00054794,120]
[358835491,1745487479830,-1037.25,0.00054794,120]
[358835492,1745487479861,-1037.25,0.00054794,120]
[358835493,1745487479888,-1686.18,0.00054795,60]
[358835494,1745487480529,1037.25,0.00054794,120]
[358835495,1745487480592,1037.25,0.00054794,120]
[358835496,1745487480658,1037.25,0.00054794,120]
[358835497,1745487480714,1037.25,0.00054794,120]
[358835498,1745487480769,725.64415026,0.000505,120]
[358835499,1745487480807,1037.25,0.00054794,120]
[358835500,1745487480872,1037.25,0.00054794,120]
[358835501,1745487480935,1037.25,0.00054794,120]
[358835502,1745487480992,1037.25,0.00054794,120]
[358835503,1745487481061,1037.25,0.00054794,120]
[358835504,1745487481131,1037.25,0.00054794,120]
[358835505,1745487481197,1037.25,0.00054794,120]
[358835506,1745487481262,1037.25,0.00054794,120]
[358835507,1745487481350,1037.25,0.00054794,120]
[358835508,1745487481395,1037.25,0.00054794,120]
[358835509,1745487481459,1037.25,0.00054794,120]
[358835510,1745487481773,150.0,0.00054091,120]
[358835511,1745487481833,1037.25,0.00054794,120]
[358835512,1745487481910,1037.25,0.00054794,120]
[358835513,1745487481946,150.0,0.00054246,120]
[358835514,1745487481999,432.13,0.000505,120]
[358835515,1745487482038,1037.25,0.00054794,120]
[358835516,1745487482099,150.0,0.00054247,120]
[358835517,1745487482158,1037.25,0.00054794,120]
[358835518,1745487482201,150.0,0.00054271,30]
[358835519,1745487482255,1037.43800966,0.00054794,120]
[358835520,1745487482317,150.0,0.00054365,120]
[358835521,1745487482393,150.0,0.00054392,90]
[358835522,1745487482504,12230.42,0.0005469,30]
[358835523,1745487483258,988.5,0.00040525,60]
[358835524,1745487486312,440.71,0.0005379,120]
[358835525,1745487490264,720.98269265,0.0005379,120]
[358835526,1745487537467,-100000.0,0.0004672,60]
[358835527,1745487537500,-500.0,0.0004672,120]
[358835528,1745487537533,-994.60119214,0.0004672,120]
[358835529,1745487537564,-1147.25919743,0.0004672,60]
[358835530,1745487537593,-10000.0,0.0004672,120]
[358835531,1745487537623,-1999.999993,0.0004672,120]
[358835532,1745487537656,-444.6180735,0.0004672,90]
[358835533,1745487537686,-183.59340126,0.0004672,60]
[358835534,1745487537716,-498.74181205,0.0004672,120]
[358835535,1745487537745,-167.62511815,0.0004672,60]
[358835536,1745487537773,-1990.50357412,0.0004672,120]
[358835537,1745487537800,-284.3062184,0.0004672,120]
[358835538,1745487537829,-706.14128646,0.0004672,120]
[358835539,1745487537860,-709.72788771,0.0004672,120]
[358835540,1745487537889,-336.49029784,0.0004672,120]
[358835541,1745487537917,-1293.03244113,0.0004672,120]
[358835542,1745487537947,-271.04149683,0.0004672,120]
[358835543,1745487537975,-522.2,0.0004672,120]
[358835544,1745487538005,-366.28809529,0.0004672,120]
[358835545,1745487538034,-1745.60421143,0.0004672,120]
[358835546,1745487538062,-622.00942975,0.0004672,120]
[358835547,1745487538091,-1751.3473815,0.0004672,120]
[358835548,1745487538123,-663.38793505,0.0004672,120]
[358835549,1745487538151,-309.607193,0.0004672,120]
[358835550,1745487538180,-500.0,0.0004672,120]
[358835551,1745487538208,-246923.64979805,0.0004672,120]
[358835552,1745487538236,-423.74666689,0.0004672,120]
[358835553,1745487538267,-50000.0,0.0004672,33]
[358835554,1745487538297,-50000.0,0.0004672,34]
[358835555,1745487538326,-1941652.04663541,0.0004672,120]
[358835556,1745487538355,-188362.33664096,0.0004672,45]
[358835557,1745487538397,-150981.31388068,0.0004672,120]
[358835558,1745487538429,-439000.0,0.0004672,120]
[358835559,1745487538460,-5000.0,0.0004672,45]
[358835560,1745487538490,-1023.68906422,0.0004672,120]
[358835561,1745487538519,-5000.0,0.0004672,60]
[358835562,1745487538549,-5112.46,0.0004672,65]
[358835563,1745487538582,-1013.1,0.0004672,40]
[358835564,1745487538614,-1013.1,0.0004672,40]
[358835565,1745487538645,-1013.1,0.0004672,40]
[358835566,1745487538676,-1013.1,0.0004672,40]
[358835567,1745487538706,-1013.1,0.0004672,40]
[358835568,1745487538735,-1013.1,0.0004672,40]
[358835569,1745487539185,-1013.1,0.0004672,40]
[358835570,1745487539223,-1013.1,0.0004672,40]
[358835571,1745487539254,-1013.1,0.0004672,40]
[358835572,1745487539284,-1013.1,0.0004672,40]
[358835573,1745487539314,-1013.1,0.0004672,40]
[358835574,1745487539343,-1013.1,0.0004672,40]
[358835575,1745487539372,-1013.1,0.0004672,40]
[358835576,1745487539401,-1013.1,0.0004672,40]
[358835577,1745487539432,-1013.1,0.0004672,40]
[358835578,1745487539462,-1013.1,0.0004672,40]
[358835579,1745487539490,-1013.1,0.0004672,40]
[358835580,1745487539520,-1013.1,0.0004672,40]
[358835581,1745487539549,-1013.1,0.0004672,40]
[358835582,1745487539579,-1013.1,0.0004672,40]
[358835583,1745487539608,-1013.1,0.0004672,120]
[358835584,1745487539637,-1013.1,0.0004672,120]
[358835585,1745487539668,-1013.1,0.0004672,120]
[358835586,1745487539696,-1013.31695088,0.0004672,120]
[358835587,1745487539724,-1765.84,0.0004672,40]
[358835588,1745487539752,-1765.84,0.0004672,40]
[358835589,1745487539781,-1765.84,0.0004672,40]
[358835590,1745487539810,-1765.84,0.0004672,40]
[358835591,1745487539844,-1765.84,0.0004672,40]
[358835592,1745487539873,-1765.84,0.0004672,40]
[358835593,1745487539902,-1765.84,0.0004672,40]
[358835594,1745487539932,-1765.84,0.0004672,40]
[358835595,1745487539961,-1765.84,0.0004672,40]
[358835596,1745487539990,-1765.84,0.0004672,40]
[358835597,1745487540022,-1765.84,0.0004672,40]
[358835598,1745487540055,-1765.84,0.0004672,40]
[358835599,1745487540090,-1765.84,0.0004672,40]
[358835600,1745487540126,-1765.84,0.0004672,40]
[358835601,1745487540159,-1765.84,0.0004672,40]
[358835602,1745487540193,-1765.84,0.0004672,40]
[358835603,1745487540228,-1765.84,0.0004672,40]
[358835604,1745487540261,-1765.84,0.0004672,40]
[358835605,1745487540293,-1765.84,0.0004672,40]
[358835606,1745487540323,-1765.84,0.0004672,40]
[358835607,1745487540354,-1765.84,0.0004672,120]
[358835608,1745487540384,-1765.84,0.0004672,120]
[358835609,1745487540414,-1765.84,0.0004672,120]
[358835610,1745487540445,-1766.07795096,0.0004672,120]
[358835611,1745487540475,-500.0,0.0004672,40]
[358835612,1745487540505,-500.0,0.0004672,40]
[358835613,1745487540534,-500.0,0.0004672,40]
[358835614,1745487540576,-500.0,0.0004672,40]
[358835615,1745487540611,-500.0,0.0004672,40]
[358835616,1745487540643,-500.0,0.0004672,40]
[358835617,1745487540674,-500.0,0.0004672,40]
[358835618,1745487540706,-500.0,0.0004672,40]
[358835619,1745487540738,-500.0,0.0004672,40]
[358835620,1745487540769,-500.0,0.0004672,40]
[358835621,1745487540799,-500.0,0.0004672,40]
[358835622,1745487540830,-500.0,0.0004672,40]
[358835623,1745487540862,-500.0,0.0004672,40]
[358835624,1745487540891,-500.0,0.0004672,40]
[358835625,1745487540921,-500.0,0.0004672,40]
[358835626,1745487540951,-500.0,0.0004672,40]
[358835627,1745487540982,-500.0,0.0004672,40]
[358835628,1745487541012,-500.0,0.0004672,40]
[358835629,1745487541044,-500.0,0.0004672,40]
[358835630,1745487541076,-500.0,0.0004672,40]
[358835631,1745487541109,-500.0,0.0004672,120]
[358835632,1745487541148,-500.0,0.0004672,120]
[358835633,1745487541184,-152.7,0.0004672,120]
[358835634,1745487541221,-500.0,0.0004672,40]
[358835635,1745487541254,-500.0,0.0004672,40]
[358835636,1745487541288,-500.0,0.0004672,40]
[358835637,1745487541322,-500.0,0.0004672,40]
[358835638,1745487541356,-500.0,0.0004672,40]
[358835639,1745487541389,-500.0,0.0004672,40]
[358835640,1745487541421,-500.0,0.0004672,40]
[358835641,1745487541454,-500.0,0.0004672,40]
[358835642,1745487541489,-500.0,0.0004672,40]
[358835643,1745487541521,-541.6950801,0.0004672,40]
[358835644,1745487541552,-2000.0,0.0004672,120]
[358835645,1745487541584,-100000.0,0.0004672,120]
[358835646,1745487541620,-100000.0,0.0004672,120]
[358835647,1745487541652,-100000.0,0.0004672,120]
[358835648,1745487541686,-10000.0,0.0004672,120]
[358835649,1745487541720,-50000.0,0.0004672,120]
[358835650,1745487541750,-50000.0,0.0004672,120]
[358835651,1745487541781,-50000.0,0.0004672,120]
[358835652,1745487541812,-50000.0,0.0004672,120]
[358835653,1745487541842,-60000.0,0.0004672,120]
[358835654,1745487541873,-2293.70286622,0.0004672,38]
[358835655,1745487541903,-14776.31526832,0.0004672,120]
[358835656,1745487541936,-195.0,0.0004672,120]
[358835657,1745487541968,-214.73349249,0.0004672,60]
[358835658,1745487541997,-1860.0,0.0004672,120]
[358835659,1745487542031,-308.0,0.0004672,120]
[358835660,1745487542063,-1336.20786952,0.0004672,120]
[358835661,1745487542096,-2165.15701095,0.0004672,120]
[358835662,1745487542131,-659.0,0.0004672,120]
[358835663,1745487542164,-199.30642163,0.0004672,120]
[358835664,1745487542196,-587.97852826,0.0004672,120]
[358835665,1745487542227,-13120.39914393,0.0004672,120]
[358835666,1745487542260,-5434.25583575,0.0004672,60]
[358835667,1745487542292,-1005.26312761,0.0004672,120]
[358835668,1745487542322,-727.0,0.0004672,120]
[358835669,1745487542353,-173.0,0.0004672,120]
[358835670,1745487542384,-25191.36838373,0.0004672,120]
[358835671,1745487543587,-1045.31,0.0004672,120]
[358835672,1745487543624,-5000.0,0.0004672,36]
[358835673,1745487543658,-6374.38521955,0.0004672,120]
[358835674,1745487543692,-1684.57239108,0.0004672,120]
[358835675,1745487543725,-21164.08250245,0.0004672,60]
[358835676,1745487543756,-154.4038196,0.0004672,120]
[358835677,1745487543800,-964.81616986,0.0004672,120]
[358835678,1745487543844,-328.88751677,0.0004672,120]
[358835679,1745487543890,-20000.0,0.0004672,55]
[358835680,1745487543924,-6660.07552809,0.0004672,60]
[358835681,1745487549805,-20823.20101194,0.0004672,60]
[358835682,1745487549849,-500.0,0.0004672,120]
[358835683,1745487549884,-500.0,0.0004672,120]
[358835684,1745487549919,-500.0,0.0004672,120]
[358835685,1745487549952,-500.0,0.0004672,120]
[358835686,1745487549983,-500.0,0.0004672,120]
[358835687,1745487550014,-500.0,0.0004672,120]
[358835688,1745487550046,-500.0,0.0004672,120]
[358835689,1745487550077,-500.0,0.0004672,120]
[358835690,1745487550108,-500.0,0.0004672,120]
[358835691,1745487550151,-500.0,0.0004672,120]
[358835692,1745487550183,-500.0,0.0004672,120]
[358835693,1745487550215,-500.0,0.0004672,120]
[358835694,1745487550247,-500.0,0.0004672,120]
[358835695,1745487550280,-500.0,0.0004672,120]
[358835696,1745487550313,-500.0,0.0004672,120]
[358835697,1745487550344,-500.0,0.0004672,120]
[358835698,1745487550376,-500.0,0.0004672,120]
[358835699,1745487550407,-500.0,0.0004672,120]
[358835700,1745487550438,-500.0,0.0004672,120]
[358835701,1745487550469,-559.84005177,0.0004672,120]
[358835702,1745487550505,-1591.19,0.0004672,120]
[358835703,1745487550537,-1591.19,0.0004672,120]
[358835704,1745487550568,-1591.19,0.0004672,120]
[358835705,1745487550600,-1591.19,0.0004672,120]
[358835706,1745487550632,-1591.19,0.0004672,120]
[358835707,1745487550663,-1591.19,0.0004672,120]
[358835708,1745487550693,-1591.19,0.0004672,120]
[358835709,1745487550724,-1591.19,0.0004672,120]
[358835710,1745487550761,-1591.19,0.0004672,120]
[358835711,1745487550792,-1591.19,0.0004672,120]
[358835712,1745487550823,-1591.19,0.0004672,120]
[358835713,1745487550853,-1591.19,0.0004672,120]
[358835714,1745487550885,-1591.19,0.0004672,120]
[358835715,1745487550915,-1591.19,0.0004672,120]
[358835716,1745487550946,-1591.19,0.0004672,120]
[358835717,1745487550977,-1591.19,0.0004672,120]
[358835718,1745487551008,-1591.19,0.0004672,120]
[358835719,1745487551040,-1591.19,0.0004672,120]
[358835720,1745487551500,-1591.19,0.0004672,120]
[358835721,1745487551532,-1591.19,0.0004672,120]
[358835722,1745487551565,-1591.19,0.0004672,120]
[358835723,1745487551595,-1591.19,0.0004672,120]
[358835724,1745487551626,-1591.19,0.0004672,120]
[358835725,1745487551655,-1591.21242766,0.0004672,120]
[358835726,1745487551693,-1000.0,0.0004672,120]
[358835727,1745487551724,-1000.0,0.0004672,120]
[358835728,1745487551753,-1000.0,0.0004672,120]
[358835729,1745487551783,-1000.0,0.0004672,120]
[358835730,1745487551811,-589.32058099,0.0004672,120]
[358835731,1745487551843,-665.36,0.0004672,120]
[358835732,1745487552086,-665.36,0.0004672,120]
[358835733,1745487552120,-665.36,0.0004672,120]
[358835734,1745487552173,-665.36,0.0004672,120]
[358835735,1745487552211,-665.36,0.0004672,120]
[358835736,1745487552243,-665.36,0.0004672,120]
[358835737,1745487552273,-665.36,0.0004672,120]
[358835738,1745487552304,-665.36,0.0004672,120]
[358835739,1745487552333,-665.36,0.0004672,120]
[358835740,1745487552363,-665.36,0.0004672,120]
[358835741,1745487552393,-665.36,0.0004672,120]
[358835742,1745487552425,-665.36,0.0004672,120]
[358835743,1745487552456,-665.36,0.0004672,120]
[358835744,1745487552486,-665.36,0.0004672,120]
[358835745,1745487552516,-665.36,0.0004672,120]
[358835746,1745487552546,-665.36,0.0004672,120]
[358835747,1745487552575,-665.36,0.0004672,120]
[358835748,1745487552604,-665.36,0.0004672,120]
[358835749,1745487552633,-665.36,0.0004672,120]
[358835750,1745487552661,-665.36,0.0004672,120]
[358835751,1745487552688,-665.36,0.0004672,120]
[358835752,1745487552717,-665.36,0.0004672,120]
[358835753,1745487552746,-665.36,0.0004672,120]
[358835754,1745487552774,-665.44873465,0.0004672,120]
[358835755,1745487552815,-500.0,0.0004672,120]
[358835756,1745487552846,-500.0,0.0004672,120]
[358835757,1745487552877,-500.0,0.0004672,120]
[358835758,1745487552905,-500.0,0.0004672,120]
[358835759,1745487552934,-500.0,0.0004672,120]
[358835760,1745487552962,-543.70460723,0.0004672,120]
[358835761,1745487662563,1595.517663,0.00018954,2]
[358835763,1745487741213,-250.0,0.0001905,2]
[358835764,1745487741237,-315.4,0.00019088,2]
[358835765,1745487741261,-764.44,0.00019103,2]
[358835766,1745487741285,-200.0,0.00019107,2]
[358835767,1745487741308,-449.32,0.00019128,2]
[358835768,1745487741336,-250.0,0.00019133,2]
[358835769,1745487741360,-1017.42,0.00019308,2]
[358835770,1745487741382,-248.89,0.00019597,2]
[358835771,1745487741405,-300.0,0.00019798,2]
[358835772,1745487741428,-299.5541521,0.00019799,2]
[358835773,1745487741452,-4128.1,0.00019799,2]
[358835774,1745487741475,-1939.1295659,0.00019888,2]
[358835775,1745487741500,-1200.0,0.00019899,2]
[358835776,1745487741523,-1199.9702,0.000199,2]
[358835777,1745487741547,-17301.9415,0.000199,2]
[358835778,1745487741572,-351.08,0.000199,2]
[358835779,1745487741596,-360.95,0.000199,2]
[358835780,1745487741619,-161.75,0.000199,2]
[358835781,1745487741642,-351.08,0.000199,2]
[358835782,1745487741665,-161.75,0.000199,2]
[358835783,1745487741688,-150.0,0.000199,2]
[358835784,1745487741711,-351.08,0.000199,2]
[358835785,1745487741734,-300.0,0.000199,2]
[358835786,1745487741757,-323.5,0.000199,2]
[358835787,1745487741779,-150.0,0.000199,2]
[358835788,1745487741806,-351.2,0.000199,2]
[358835789,1745487741834,-161.75,0.000199,2]
[358835790,1745487741858,-701.2,0.000199,2]
[358835791,1745487741880,-161.75,0.000199,2]
[358835792,1745487741902,-150.0,0.000199,2]
[358835793,1745487741925,-351.08,0.000199,2]
[358835794,1745487741947,-161.75,0.000199,2]
[358835795,1745487741970,-161.75,0.000199,2]
[358835796,1745487741991,-199.52,0.000199,2]
[358835797,1745487742014,-351.08,0.000199,2]
[358835798,1745487742037,-200.0,0.00019904,2]
[358835799,1745487742060,-500.0,0.00019973,2]
[358835800,1745487742083,-204.12031234,0.00019973,2]
[358835801,1745487742107,-484.457,0.00019985,2]
[358835802,1745487742130,-1203.9336022,0.00019986,2]
[358835803,1745487742153,-5285.70211489,0.0001999,2]
[358835804,1745487742176,-500.0,0.00019999,2]
[358835805,1745487742203,-500.0,0.00019999,2]
[358835806,1745487742225,-500.0,0.00019999,2]
[358835807,1745487742250,-500.0,0.00019999,2]
[358835808,1745487742274,-500.0,0.00019999,2]
[358835809,1745487742296,-500.0,0.00019999,2]
[358835810,1745487742528,-500.0,0.00019999,2]
[358835811,1745487742552,-1644.09672093,0.00019999,2]
[358835812,1745487742576,-182.25141678,0.00019999,2]
[358835813,1745487742600,-431.40438432,0.00019999,2]
[358835814,1745487742625,-184.88759328,0.00019999,2]
[358835815,1745487742648,-696.0,0.0002,2]
[358835816,1745487742672,-900676.25931105,0.0002,2]
[358835817,1745487742695,-7225.20922645,0.0002,2]
[358835818,1745487742716,-301.03699794,0.0002,2]
[358835819,1745487742738,-1481.6270868,0.0002,2]
[358835820,1745487742760,-41232.86796624,0.0002,2]
[358835821,1745487742781,-3051.07808024,0.0002,2]
[358835822,1745487742803,-1804.6,0.0002,2]
[358835823,1745487742826,-5648.70171331,0.0002,2]
[358835824,1745487742849,-118910.10042339,0.0002,2]
[358835825,1745487742956,-1130124.76936816,0.0002,2]
[358835826,1745487743100,-1130124.76936816,0.0002,2]
[358835827,1745487743590,-1130124.76936816,0.0002,2]
[358835828,1745487744603,-1130124.76936816,0.0002,2]
[358835829,1745487745462,-352394.0279174,0.0002,2]
[358835830,1745487745484,-3950.0,0.0002,2]
[358835831,1745487745506,-1250.73651205,0.0002,2]
[358835832,1745487745527,-11833.08510451,0.0002,2]
[358835833,1745487745547,-1009.17759778,0.0002,2]
[358835834,1745487745569,-1757.19290998,0.0002,2]
[358835835,1745487745593,-151.0,0.0002,2]
[358835836,1745487745616,-152.3985,0.0002,2]
[358835837,1745487745638,-250.0,0.0002,2]
[358835838,1745487745665,-197.0,0.0002,2]
[358835839,1745487745688,-241.0,0.0002,2]
[358835840,1745487745710,-163.0,0.0002,2]
[358835841,1745487745732,-165.569,0.0002,2]
[358835842,1745487745753,-151.14,0.0002,2]
[358835843,1745487745775,-189.571,0.0002,2]
[358835844,1745487745797,-154.584,0.0002,2]
[358835845,1745487745819,-150.0,0.0002,2]
[358835846,1745487745840,-150.479,0.0002,2]
[358835847,1745487745862,-152.349,0.0002,2]
[358835848,1745487745884,-241.931,0.0002,2]
[358835849,1745487745906,-253.434,0.0002,2]
[358835850,1745487745928,-182.381,0.0002,2]
[358835851,1745487745950,-157.619707,0.0002,2]
[358835852,1745487745972,-157.619707,0.0002,2]
[358835853,1745487745995,-172.624,0.0002,2]
[358835854,1745487746017,-157.619707,0.0002,2]
[358835855,1745487746038,-157.619707,0.0002,2]
[358835856,1745487746061,-151.0,0.0002,2]
[358835857,1745487746083,-151.0,0.0002,2]
[358835858,1745487746106,-258.736,0.0002,2]